fUST/lending_fUST_20240113
["ID","MTS","AMOUNT","RATE_DAILY","PERIOD"]
[311465711,1705152639534,-155.0,0.00028767,2]
[311465713,1705152639543,-500.0,0.00028899,2]
[311465715,1705152639552,-500.0,0.00028899,2]
[311465718,1705152639561,-372.45508542,0.00028899,2]
[311465720,1705152639570,-637.2293936,0.00028899,2]
[311465722,1705152639579,-500.0,0.00028899,2]
[311465724,1705152639588,-500.0,0.00028899,2]
[311465726,1705152639597,-500.0,0.00028899,2]
[311465728,1705152639605,-690.51189342,0.00028899,2]
[311465730,1705152639614,-465.68487855,0.00028899,2]
[311465732,1705152639623,-500.0,0.00028899,2]
[311465734,1705152639632,-500.0,0.00028899,2]
[311465736,1705152639641,-500.0,0.00028899,2]
[311465738,1705152639649,-343.20292628,0.00028899,2]
[311465740,1705152639659,-690.51189342,0.00028899,2]
[311465742,1705152639668,-500.0,0.00028899,2]
[311465744,1705152639677,-500.0,0.00028899,2]
[311465746,1705152639686,-690.51189342,0.00028899,2]
[311465748,1705152639695,-500.0,0.00028899,2]
[311465750,1705152639704,-500.0,0.00028899,2]
[311465752,1705152639713,-164.53453314,0.00028899,2]
[311465754,1705152639721,-690.51189342,0.00028899,2]
[311465756,1705152639731,-601.2834293,0.00028899,2]
[311465758,1705152639739,-232.04746713,0.00028899,2]
[311465760,1705152639749,-500.0,0.00028899,2]
[311465762,1705152639759,-690.51189342,0.00028899,2]
[311465764,1705152639768,-500.0,0.00028899,2]
[311465766,1705152639779,-690.51189342,0.00028899,2]
[311465768,1705152639788,-690.51189342,0.00028899,2]
[311465770,1705152639797,-500.0,0.00028899,2]
[311465772,1705152639806,-500.0,0.00028899,2]
[311465774,1705152639815,-690.51189342,0.00028899,2]
[311465776,1705152639824,-500.0,0.00028899,2]
[311465778,1705152639833,-690.51189342,0.00028899,2]
[311465780,1705152639842,-500.0,0.00028899,2]
[311465782,1705152639852,-690.51189342,0.00028899,2]
[311465784,1705152639862,-500.0,0.00028899,2]
[311465786,1705152639871,-690.51189342,0.00028899,2]
[311465788,1705152639880,-690.51189342,0.00028899,2]
[311465790,1705152639889,-690.51189342,0.00028899,2]
[311465792,1705152639899,-500.0,0.00028899,2]
[311465794,1705152639909,-690.51189342,0.00028899,2]
[311465796,1705152639918,-446.11676094,0.00028899,2]
[311465798,1705152639927,-500.0,0.00028899,2]
[311465800,1705152639936,-690.51189342,0.00028899,2]
[311465802,1705152639945,-690.51189342,0.00028899,2]
[311465804,1705152639954,-690.51189342,0.00028899,2]
[311465806,1705152639963,-690.51189342,0.00028899,2]
[311465808,1705152639973,-500.0,0.00028899,2]
[311465810,1705152639982,-690.51189342,0.00028899,2]
[311465812,1705152639992,-500.0,0.00028899,2]
[311465814,1705152640001,-690.51189342,0.00028899,2]
[311465816,1705152640014,-500.0,0.00028899,2]
[311465818,1705152640023,-690.51189342,0.00028899,2]
[311465820,1705152640032,-500.0,0.00028899,2]
[311465822,1705152640042,-690.51189342,0.00028899,2]
[311465824,1705152640052,-690.51189342,0.00028899,2]
[311465826,1705152640060,-690.51189342,0.00028899,2]
[311465828,1705152640069,-500.0,0.00028899,2]
[311465830,1705152640078,-690.51189342,0.00028899,2]
[311465832,1705152640087,-500.0,0.00028899,2]
[311465834,1705152640096,-690.51189342,0.00028899,2]
[311465836,1705152640105,-500.0,0.00028899,2]
[311465838,1705152640114,-690.51189342,0.00028899,2]
[311465840,1705152640122,-500.0,0.00028899,2]
[311465842,1705152640132,-690.51189342,0.00028899,2]
[311465844,1705152640141,-690.51189342,0.00028899,2]
[311465846,1705152640150,-690.51189342,0.00028899,2]
[311465848,1705152640159,-690.51189342,0.00028899,2]
[311465850,1705152640168,-690.51189342,0.00028899,2]
[311465852,1705152640178,-500.0,0.00028899,2]
[311465854,1705152640187,-690.51189342,0.00028899,2]
[311465856,1705152640196,-690.51189342,0.00028899,2]
[311465858,1705152640205,-6033.19021278,0.000289,18]
[311465860,1705152640215,-155.37817011,0.00029,2]
[311465862,1705152640224,-160.46324954,0.00029064,2]
[311465864,1705152640232,-358.360064,0.00029276,2]
[311465866,1705152640242,-358.360064,0.00029276,2]
[311465868,1705152640251,-481.73,0.00029276,2]
[311465869,1705152640260,-592.75,0.00029285,2]
[311465871,1705152640269,-163.50300633,0.00029318,2]
[311465872,1705152640277,-608.64941132,0.00029318,2]
[311465875,1705152640287,-1000.0,0.00029318,7]
[311465877,1705152640297,-1000.0,0.00029318,7]
[311465878,1705152640306,-1000.0,0.00029318,7]
[311465880,1705152640315,-155.06823002,0.00029501,3]
[311465882,1705152640324,-16907.97018016,0.00029698,2]
[311465884,1705152640333,-507.1853477,0.0002979,3]
[311465886,1705152640343,-151.0,0.00029852,2]
[311465888,1705152640352,-5171.02885485,0.00029989,2]
[311465890,1705152640361,-7691.5489087,0.00029999,2]
[311465892,1705152640370,-500.0,0.00029999,4]
[311465894,1705152640379,-500.0,0.00029999,4]
[311465896,1705152640388,-500.0,0.00029999,4]
[311465898,1705152640397,-295.32720739,0.00029999,4]
[311465900,1705152640406,-634.52978109,0.00029999,4]
[311465902,1705152640415,-389.05969183,0.00029999,4]
[311465904,1705152640424,-415.42092994,0.00029999,4]
[311465906,1705152640436,-155.62387672,0.00029999,4]
[311465908,1705152640445,-316.32,0.00029999,2]
[311465910,1705152640454,-316.32,0.00029999,2]
[311465912,1705152640464,-316.32,0.00029999,2]
[311465914,1705152640474,-316.32,0.00029999,2]
[311465916,1705152640483,-316.32,0.00029999,2]
[311465918,1705152640493,-316.32,0.00029999,2]
[311465920,1705152640502,-316.32,0.00029999,2]
[311465922,1705152640512,-316.32,0.00029999,2]
[311465924,1705152640521,-316.32,0.00029999,2]
[311465926,1705152640530,-161.94694653,0.00029999,10]
[311465927,1705152640539,-108607.46008102,0.0003,2]
[311465930,1705152640553,-22423.03805989,0.0003,2]
[311465933,1705152640570,-1877.5305204,0.0003,2]
[311465965,1705152641205,-9353.68,0.00029979,3]
[311465967,1705152641215,-65453.29363152,0.0003,2]
[311465970,1705152641227,-46338.35708761,0.0003,2]
[311465972,1705152641236,-1000.0,0.0003,2]
[311465974,1705152641247,-1000.0,0.0003,2]
[311465976,1705152641256,-1000.0,0.0003,2]
[311465978,1705152641266,-671.39481401,0.0003,4]
[311465980,1705152641278,-339.64638281,0.0003,4]
[311465982,1705152641290,-348.60162604,0.0003,4]
[311466498,1705152646162,-322.02166695,0.0002823,2]
[311466500,1705152646171,-902.06325621,0.00029999,2]
[311466502,1705152646181,-9938.3657677,0.00029999,2]
[311467023,1705153703585,-5363.27810049,0.00020905,2]
[311467024,1705153703669,-109.45465511,0.00020905,2]
[311467025,1705153714123,1112.22182837,0.00019711,2]
[311467027,1705153751654,182.50978617,0.00019711,2]
[311467028,1705153752715,1205.26838546,0.00019711,2]
[311467029,1705153753200,-7051.24490732,0.00019711,2]
[311467030,1705153753306,-143.90295729,0.00019711,2]
[311467031,1705153757979,-590.19305826,0.00019711,2]
[311467032,1705153758092,-12.04475629,0.00019711,2]
[311467034,1705153771908,-523.31014079,0.00019711,2]
[311467035,1705153772015,-10.67979879,0.00019711,2]
[311467037,1705153796334,-1247.82964834,0.00019711,2]
[311467038,1705153796456,-25.46591119,0.00019711,2]
[311467039,1705153805820,-523.31014079,0.00019711,2]
[311467040,1705153805922,-10.67979879,0.00019711,2]
[311467041,1705153811086,-9871.06041311,0.00019711,2]
[311467042,1705153811266,-201.45021251,0.00019711,2]
[311467083,1705153832351,-178.6090388,0.00021868,2]
[311467085,1705153832361,-5720.2309618,0.00021869,3]
[311467448,1705153839381,-205.56144134,0.00019711,2]
[311467449,1705153839392,-2031.04627016,0.00021869,2]
[311467450,1705153839403,-554.4461358,0.00021869,2]
[311467451,1705153839413,-242.70971485,0.00021876,2]
[311467452,1705153839425,-155.04031048,0.00021877,4]
[311467453,1705153839435,-166.15850986,0.00021877,2]
[311467454,1705153839445,-686.84015754,0.00021877,2]
[311467455,1705153839456,-466.88440498,0.00021877,2]
[311467456,1705153839467,-19669.45887816,0.00021877,2]
[311467457,1705153839478,-155.04031048,0.00021878,2]
[311467458,1705153839489,-155.04031048,0.00021878,2]
[311467459,1705153839499,-155.04031048,0.00021878,2]
[311467460,1705153839510,-13192.01015618,0.00021878,2]
[311467461,1705153839522,-3739.83692248,0.00021879,2]
[311467462,1705153839532,-13698.4853674,0.00021879,2]
[311467463,1705153839543,-81086.75247006,0.0002188,2]
[311467464,1705153839555,-6814.38899291,0.00021901,2]
[311467465,1705153839566,-24900.0,0.00021906,2]
[311467466,1705153839577,-158.834792,0.00021918,2]
[311467467,1705153839588,-280.48272,0.00023,2]
[311467468,1705153839599,-200.0,0.00024091,7]
[311467469,1705153839610,-188.74252206,0.00026297,2]
[311467470,1705153839619,-280.0,0.000265,15]
[311467471,1705153839629,-1990.13068714,0.00027133,2]
[311467472,1705153839639,-246.10686283,0.00027144,2]
[311467473,1705153839649,-1737.54470302,0.00027144,2]
[311467474,1705153839659,-743.56244814,0.00027144,2]
[311467475,1705153839668,-366.26274898,0.00027144,2]
[311467476,1705153839678,-260.63257169,0.00027144,2]
[311467477,1705153839688,-240.52585147,0.00027144,2]
[311467478,1705153839699,-3020.47058663,0.00027144,2]
[311467479,1705153839711,-272.75006535,0.00027144,2]
[311467480,1705153839722,-160.82569621,0.00027144,2]
[311467481,1705153839733,-937.611288,0.00027144,2]
[311467482,1705153839743,-731.5569857,0.00027144,2]
[311467483,1705153839754,-467.5107266,0.00027144,2]
[311467484,1705153839764,-2871.42236462,0.00027144,2]
[311467485,1705153839777,-258.13043742,0.00027144,2]
[311467486,1705153839787,-640.99380254,0.00027144,2]
[311467487,1705153839798,-1030.79768525,0.00027144,2]
[311467488,1705153839808,-164.28785018,0.00027144,2]
[311467489,1705153839817,-2844.80140438,0.00027145,2]
[311467490,1705153839827,-20859.25710499,0.00027147,2]
[311467491,1705153839837,-155.0,0.00027397,2]
[311467492,1705153839846,-10131.0472122,0.000274,2]
[311467493,1705153839856,-1196.12808054,0.000279,2]
[311467494,1705153839866,-2000.0,0.00028,2]
[311467495,1705153839875,-2000.0,0.0002801,2]
[311467496,1705153839885,-2000.0,0.0002802,2]
[311467497,1705153839895,-188.74252204,0.00028097,2]
[311467498,1705153839905,-936.95110714,0.00028228,2]
[311467499,1705153839914,-164.90810386,0.00028228,2]
[311467500,1705153839924,-3103.32857577,0.00028228,2]
[311467501,1705153839934,-639.15057473,0.00028229,2]
[311467502,1705153839944,-195.90552388,0.00028229,2]
[311467503,1705153839953,-400.95828293,0.00028229,2]
[311467504,1705153839963,-1022.54640014,0.00028229,2]
[311467505,1705153839974,-646.79871968,0.00028229,2]
[311467506,1705153839983,-166.3955963,0.00028229,2]
[311467507,1705153839993,-5000.0,0.00028259,5]
[311467508,1705153840003,-20221.17574582,0.00028266,3]
[311467509,1705153840013,-291.47045234,0.00028266,2]
[311467510,1705153840023,-699.50904456,0.00028266,2]
[311467511,1705153840033,-289.61737689,0.00028494,2]
[311467512,1705153840043,-152.87958298,0.00028553,2]
[311467513,1705153840053,-155.0,0.00028767,2]
[311467515,1705153840063,-336.64,0.00028799,2]
[311467516,1705153840074,-336.64,0.00028799,2]
[311467518,1705153840083,-336.64,0.00028799,2]
[311467521,1705153840093,-336.64,0.00028799,2]
[311467523,1705153840103,-336.64,0.00028799,2]
[311467525,1705153840114,-336.64,0.00028799,2]
[311467544,1705153840292,-336.64,0.00028799,2]
[311467545,1705153840307,-336.64,0.00028799,2]
[311467547,1705153840316,-336.64,0.00028799,2]
[311467549,1705153840326,-593.45847134,0.00028799,4]
[311467551,1705153840336,-500.0,0.00028799,4]
[311467553,1705153840345,-500.0,0.00028799,4]
[311467555,1705153840354,-500.0,0.00028799,4]
[311467558,1705153840364,-278.11938365,0.00028799,4]
[311467561,1705153840373,-500.0,0.00028799,4]
[311467563,1705153840383,-500.0,0.00028799,4]
[311467565,1705153840393,-586.32445273,0.00028799,4]
[311467567,1705153840402,-500.0,0.00028799,4]
[311467569,1705153840412,-500.0,0.00028799,4]
[311467570,1705153840421,-500.0,0.00028799,4]
[311467572,1705153840433,-500.0,0.00028799,4]
[311467574,1705153840443,-500.0,0.00028799,4]
[311467576,1705153840452,-488.31801848,0.00028799,4]
[311467578,1705153840461,-500.0,0.00028799,2]
[311467580,1705153840472,-500.0,0.00028799,2]
[311467582,1705153840482,-500.0,0.00028799,2]
[311467584,1705153840492,-637.2293936,0.00028799,2]
[311467586,1705153840501,-384.32492025,0.00028799,2]
[311467588,1705153840510,-500.0,0.00028799,2]
[311467590,1705153840519,-465.68487855,0.00028799,2]
[311467592,1705153840529,-500.0,0.00028799,2]
[311467594,1705153840539,-164.53453314,0.00028799,2]
[311467596,1705153840548,-500.0,0.00028799,2]
[311467598,1705153840557,-500.0,0.00028799,2]
[311467600,1705153840566,-432.02926278,0.00028799,2]
[311467602,1705153840576,-500.0,0.00028799,2]
[311467604,1705153840585,-500.0,0.00028799,2]
[311467606,1705153840595,-500.0,0.00028799,2]
[311467608,1705153840604,-372.45508542,0.00028799,2]
[311467610,1705153840613,-500.0,0.00028799,2]
[311467612,1705153840622,-531.13117016,0.00028799,2]
[311467614,1705153840631,-500.0,0.00028799,2]
[311467616,1705153840640,-500.0,0.00028799,2]
[311467618,1705153840649,-500.0,0.00028799,2]
[311467620,1705153840659,-500.0,0.00028799,2]
[311467622,1705153840668,-500.0,0.00028799,2]
[311467624,1705153840677,-500.0,0.00028799,2]
[311467626,1705153840686,-500.0,0.00028799,2]
[311467628,1705153840695,-500.0,0.00028799,2]
[311467630,1705153840705,-500.0,0.00028799,2]
[311467632,1705153840714,-500.0,0.00028799,2]
[311467634,1705153840724,-500.0,0.00028799,2]
[311467636,1705153840734,-500.0,0.00028799,2]
[311467638,1705153840743,-500.0,0.00028799,2]
[311467640,1705153840752,-500.0,0.00028799,2]
[311467642,1705153840762,-500.0,0.00028799,2]
[311467644,1705153840771,-500.0,0.00028799,2]
[311467646,1705153840780,-500.0,0.00028799,2]
[311467648,1705153840790,-500.0,0.00028799,2]
[311467650,1705153840799,-500.0,0.00028799,2]
[311467652,1705153840809,-500.0,0.00028799,2]
[311467654,1705153840818,-500.0,0.00028799,2]
[311467656,1705153840827,-500.0,0.00028799,2]
[311467658,1705153840837,-500.0,0.00028799,2]
[311467660,1705153840847,-500.0,0.00028799,2]
[311467662,1705153840856,-500.0,0.00028799,2]
[311467664,1705153840866,-500.0,0.00028799,2]
[311467666,1705153840875,-500.0,0.00028799,2]
[311467668,1705153840884,-500.0,0.00028799,2]
[311467670,1705153840894,-500.0,0.00028799,2]
[311467672,1705153840903,-500.0,0.00028799,2]
[311467674,1705153840912,-500.0,0.00028799,2]
[311467676,1705153840922,-500.0,0.00028799,2]
[311467678,1705153840932,-500.0,0.00028799,2]
[311467680,1705153840941,-500.0,0.00028799,2]
[311467682,1705153840950,-446.11676094,0.00028799,2]
[311467684,1705153840959,-500.0,0.00028799,2]
[311467686,1705153840969,-500.0,0.00028799,2]
[311467688,1705153840978,-500.0,0.00028799,2]
[311467690,1705153840987,-500.0,0.00028799,2]
[311467692,1705153840996,-500.0,0.00028799,2]
[311467694,1705153841005,-500.0,0.00028799,2]
[311467696,1705153841015,-500.0,0.00028799,2]
[311467698,1705153841025,-500.0,0.00028799,2]
[311467699,1705153841034,-500.0,0.00028799,2]
[311467701,1705153841043,-120444.02382703,0.000288,2]
[311467807,1705153841966,-191.10838986,0.0001971,2]
[311467809,1705153841978,-261.8986851,0.0001971,2]
[311467811,1705153841988,-5792.72921418,0.000288,2]
[311467814,1705153841999,-30259.56702308,0.000288,2]
[311467816,1705153842012,-1401.49993163,0.000288,2]
[311467976,1705153843303,155.04031048,0.0001971,2]
[311468641,1705153849906,-3756.50486981,0.00019711,2]
[311468652,1705153850002,-76.66336469,0.00019711,2]
[311468860,1705153866310,-3762.20956893,0.00019711,2]
[311468861,1705153866396,-76.77978712,0.00019711,2]
[311468867,1705153944283,-220.5826354,0.00019711,2]
[311468868,1705153944549,-4.50168644,0.00019711,2]
[311468875,1705154030274,4667.11224561,0.0001631,2]
[311468886,1705154305333,-441.77289268,0.00020988,2]
[311468887,1705154305448,-9.01577332,0.00020988,2]
[311468898,1705154520424,-560.74395883,0.00021263,2]
[311468899,1705154520451,-155.23378922,0.00021264,2]
[311468900,1705154520586,-14.61179078,0.00021264,2]
[311468901,1705154521374,260.43027978,0.00021263,2]
[311468902,1705154524156,-1763.745208,0.00020959,2]
[311468903,1705154524184,-1693.19539968,0.00020959,2]
[311468904,1705154524463,-70.54980832,0.00020959,2]
[311468905,1705154524491,-1763.745208,0.00020959,2]
[311468906,1705154524521,-1622.64559136,0.00020959,2]
[311468907,1705154524650,-141.09961664,0.00020959,2]
[311468908,1705154524677,-261.8986851,0.00021263,2]
[311468909,1705154524742,1763.745208,0.00020959,2]
[311468910,1705154531137,-12000.0,0.0002097,2]
[311468911,1705154531311,-12000.0,0.0002097,2]
[311468912,1705154531442,-900.0,0.0002097,2]
[311468921,1705154751374,-155.0356582,0.00021843,4]
[311468922,1705154751397,-242.70971485,0.00021844,2]
[311468923,1705154751421,-1345.29824964,0.00021844,2]
[311468925,1705154769791,-4461.39040503,0.00021842,2]
[311468926,1705154769814,-191.10838986,0.00021842,2]
[311468928,1705154777506,-166.15850986,0.00021841,2]
[311468929,1705154788934,-2031.04627016,0.00021842,2]
[311468930,1705154788974,-7990.7979956,0.00021842,2]
[311468988,1705155034102,-155.02480397,0.00021833,4]
[311468989,1705155034112,-1240.5015561,0.00021833,2]
[311468990,1705155034121,-1251.25826469,0.00021834,2]
[311468991,1705155034130,-13698.4853674,0.00021834,2]
[311468993,1705155034140,-155.02480397,0.00021835,2]
[311468995,1705155034149,-1588.00796449,0.00021835,2]
[311468996,1705155034159,-334.50251997,0.00021976,2]
[311468997,1705155034169,-3941.45443239,0.00022,2]
[311468998,1705155034178,-166.15850986,0.00024022,2]
[311468999,1705155034187,-200.0,0.00024023,7]
[311469000,1705155034197,-312.952491,0.0002462,2]
[311469001,1705155034207,-2634.2830201,0.00024753,2]
[311469002,1705155034217,-3133.33058476,0.00024905,2]
[311469003,1705155034226,-280.0,0.00026425,15]
[311469005,1705155034236,-1845.58270009,0.000267,2]
[311469007,1705155034245,-289.61737689,0.00027,2]
[311469009,1705155034255,-4742.99476485,0.0002735,2]
[311469011,1705155034264,-340.47942235,0.00027356,5]
[311469013,1705155034273,-259.90265587,0.00027397,2]
[311469015,1705155034282,-155.0,0.00027397,2]
[311469017,1705155034291,-10131.0472122,0.000274,2]
[311469019,1705155034300,-188.74252204,0.00027898,2]
[311469021,1705155034310,-5884.65539468,0.000279,2]
[311469023,1705155034322,-2572.10803097,0.000279,2]
[311469025,1705155034331,-9842.7,0.00027978,3]
[311469027,1705155034340,-11811.24,0.00027987,3]
[311469029,1705155034349,-14173.49,0.00027988,3]
[311469031,1705155034358,-646.20109552,0.00027997,2]
[311469033,1705155034367,-1022.54640014,0.00027998,2]
[311469035,1705155034376,-400.95828293,0.00027998,2]
[311469037,1705155034386,-639.15057473,0.00027998,2]
[311469039,1705155034395,-166.3955963,0.00027998,2]
[311469041,1705155034404,-3103.32857577,0.00027998,2]
[311469043,1705155034413,-164.90810386,0.00027998,2]
[311469045,1705155034422,-258.13043742,0.00027998,2]
[311469047,1705155034431,-164.28785018,0.00027998,2]
[311469049,1705155034440,-1030.79768525,0.00027998,2]
[311469051,1705155034449,-160.82569621,0.00027998,2]
[311469053,1705155034459,-467.5107266,0.00027998,2]
[311469055,1705155034468,-272.75006535,0.00027998,2]
[311469057,1705155034477,-2871.42236462,0.00027998,2]
[311469058,1705155034487,-937.611288,0.00027998,2]
[311469061,1705155034497,-260.63257169,0.00027998,2]
[311469062,1705155034506,-240.52585147,0.00027998,2]
[311469064,1705155034515,-3020.47058663,0.00027998,2]
[311469066,1705155034525,-366.26274898,0.00027998,2]
[311469068,1705155034535,-743.56244814,0.00027998,2]
[311469070,1705155034544,-322.90358594,0.00027998,2]
[311469072,1705155034553,-1737.54470302,0.00027998,2]
[311469074,1705155034562,-246.10686283,0.00027998,2]
[311469076,1705155034571,-364.03088155,0.00027998,2]
[311469078,1705155034580,-260.51402054,0.00027998,2]
[311469080,1705155034590,-20859.25710499,0.00027999,2]
[311469082,1705155034600,-2000.0,0.00028,2]
[311469084,1705155034614,-883.42613238,0.00028,2]
[311469086,1705155034623,-18886.55981879,0.00028,2]
[311469192,1705155039405,-8202.25,0.0002799,3]
[311469194,1705155039414,-254.51342565,0.00028,2]
[311469206,1705155039516,-99508.87910496,0.00028,2]
[311469208,1705155039526,-2000.0,0.0002801,2]
[311469210,1705155039535,-241.68590358,0.00028019,2]
[311469212,1705155039546,-2000.0,0.0002802,2]
[311469214,1705155039555,-190.47281864,0.00028277,2]
[311469216,1705155039564,-852.11220498,0.00028277,2]
[311469218,1705155039574,-7560.89369493,0.00028277,2]
[311469220,1705155039583,-2823.91765158,0.00028277,2]
[311469222,1705155039592,-1424.58873096,0.00028277,2]
[311469224,1705155039602,-156.94549562,0.00028278,2]
[311469226,1705155039613,-848.30162215,0.00028278,2]
[311469228,1705155039623,-844.0229169,0.00028278,2]
[311469230,1705155039633,-44537.66806203,0.00028279,3]
[311469232,1705155039642,-3708.45572494,0.00028286,2]
[311469234,1705155039651,-5000.0,0.00028286,5]
[311469236,1705155039661,-2261.92797256,0.00028286,2]
[311469238,1705155039671,-276.89692973,0.000283,2]
[311469240,1705155039679,-152.87958298,0.00028507,2]
[311469242,1705155039689,-188.74252204,0.000287,2]
[311469244,1705155039698,-3876.60768011,0.00028749,2]
[311469246,1705155039707,-155.0,0.00028767,2]
[311469248,1705155039716,-178.68714732,0.00028798,2]
[311469250,1705155039725,-224.24026105,0.00028798,2]
[311469252,1705155039735,-177.02993712,0.00028798,2]
[311469254,1705155039746,-339.45515047,0.00028798,2]
[311469256,1705155039756,-3030.68113311,0.00028798,2]
[311469258,1705155039765,-504.90431044,0.00028798,2]
[311469260,1705155039774,-7563.11274561,0.00028798,2]
[311469262,1705155039784,-309.9256646,0.00028798,2]
[311469264,1705155039793,-4453.17730401,0.00028798,2]
[311469266,1705155039802,-162.64737815,0.00028798,2]
[311469268,1705155039811,-500.0,0.00028799,2]
[311469270,1705155039820,-500.0,0.00028799,2]
[311469272,1705155039830,-601.2834293,0.00028799,2]
[311469274,1705155039839,-494.15900923,0.00028799,4]
[311469276,1705155039848,-865.04120043,0.00028799,2]
[311469278,1705155039858,-865.04120043,0.00028799,2]
[311469280,1705155039867,-865.04120043,0.00028799,2]
[311469282,1705155039876,-865.04120043,0.00028799,2]
[311469284,1705155039886,-865.04120043,0.00028799,2]
[311469286,1705155039895,-865.04120043,0.00028799,2]
[311469288,1705155039903,-865.04120043,0.00028799,2]
[311469290,1705155039913,-865.04120043,0.00028799,2]
[311469292,1705155039922,-865.04120043,0.00028799,2]
[311469294,1705155039931,-865.04120043,0.00028799,2]
[311469296,1705155039940,-865.04120043,0.00028799,2]
[311469298,1705155039952,-865.04120043,0.00028799,2]
[311469300,1705155039961,-865.04120043,0.00028799,2]
[311469302,1705155039970,-865.04120043,0.00028799,2]
[311469304,1705155039979,-500.0,0.00028799,2]
[311469306,1705155039990,-500.0,0.00028799,2]
[311469308,1705155039998,-865.04120043,0.00028799,2]
[311469310,1705155040007,-300.0,0.00028799,2]
[311469312,1705155040016,-865.04120043,0.00028799,2]
[311469314,1705155040024,-500.0,0.00028799,2]
[311469316,1705155040040,-865.04120043,0.00028799,2]
[311469318,1705155040049,-865.04120043,0.00028799,2]
[311469320,1705155040059,-865.04120043,0.00028799,2]
[311469322,1705155040068,-500.0,0.00028799,2]
[311469324,1705155040078,-500.0,0.00028799,2]
[311469326,1705155040087,-865.04120043,0.00028799,2]
[311469328,1705155040096,-865.04120043,0.00028799,2]
[311469330,1705155040106,-865.04120043,0.00028799,2]
[311469332,1705155040115,-772.35821467,0.00028799,2]
[311469334,1705155040124,-772.35821467,0.00028799,2]
[311469335,1705155040133,-772.35821467,0.00028799,2]
[311469337,1705155040143,-772.35821467,0.00028799,2]
[311469339,1705155040152,-772.35821467,0.00028799,2]
[311469341,1705155040161,-772.35821467,0.00028799,2]
[311469343,1705155040170,-772.35821467,0.00028799,2]
[311469345,1705155040180,-500.0,0.00028799,2]
[311469347,1705155040189,-772.35821466,0.00028799,2]
[311469349,1705155040198,-500.0,0.00028799,2]
[311469352,1705155040207,-250.0,0.00028799,2]
[311469353,1705155040217,-500.0,0.00028799,2]
[311469355,1705155040226,-250.0,0.00028799,2]
[311469357,1705155040235,-500.0,0.00028799,2]
[311469359,1705155040246,-223.05838047,0.00028799,2]
[311469361,1705155040255,-374.6700487,0.00028799,4]
[311469363,1705155040264,-225.916595,0.00028799,4]
[311469365,1705155040273,-500.0,0.00028799,2]
[311469368,1705155040283,-500.0,0.00028799,2]
[311469370,1705155040292,-500.0,0.00028799,2]
[311469372,1705155040301,-500.0,0.00028799,2]
[311469373,1705155040310,-500.0,0.00028799,2]
[311469375,1705155040319,-250.0,0.00028799,2]
[311469377,1705155040329,-500.0,0.00028799,2]
[311469379,1705155040338,-500.0,0.00028799,2]
[311469381,1705155040347,-250.0,0.00028799,2]
[311469384,1705155040356,-500.0,0.00028799,2]
[311469385,1705155040366,-500.0,0.00028799,2]
[311469387,1705155040375,-500.0,0.00028799,2]
[311469389,1705155040384,-500.0,0.00028799,2]
[311469391,1705155040393,-372.45508542,0.00028799,2]
[311469393,1705155040402,-582.26726657,0.00028799,2]
[311469395,1705155040411,-465.68487856,0.00028799,2]
[311469398,1705155040420,-446.06057552,0.00028799,2]
[311469400,1705155040430,-500.0,0.00028799,4]
[311469402,1705155040440,-500.0,0.00028799,4]
[311469403,1705155040449,-595.32720739,0.00028799,4]
[311469406,1705155040458,-634.52978109,0.00028799,4]
[311469407,1705155040468,-389.05969183,0.00028799,4]
[311469409,1705155040477,-415.42092994,0.00028799,4]
[311469411,1705155040487,-500.0,0.00028799,2]
[311469413,1705155040499,-472.81170511,0.00028799,2]
[311469415,1705155040508,-500.0,0.00028799,2]
[311469417,1705155040517,-500.0,0.00028799,2]
[311469419,1705155040527,-400.0,0.00028799,2]
[311469421,1705155040536,-155.62387672,0.00028799,4]